fUST/lending_fUST_20251122
["ID","MTS","AMOUNT","RATE_DAILY","PERIOD"]
[394650258,1763812238605,-500.0,8.73e-05,2]
[394650259,1763812238614,-500.0,8.73e-05,2]
[394650260,1763812238623,-142.20986192,8.73e-05,2]
[394650261,1763812238637,-357.79013808,8.73e-05,2]
[394650262,1763812238647,-500.0,8.73e-05,2]
[394650263,1763812238656,-500.0,8.73e-05,2]
[394650264,1763812238665,-151.0,8.731e-05,2]
[394650265,1763812238675,-151.0,8.731e-05,2]
[394650266,1763812238684,-151.0,8.731e-05,2]
[394650267,1763812238694,-150.0,8.732e-05,2]
[394650268,1763812238703,-11978.75421592,8.732e-05,2]
[394650269,1763812238712,-151.0,8.732e-05,2]
[394650270,1763812238722,-151.0,8.732e-05,2]
[394650271,1763812238731,-500.0,8.735e-05,2]
[394650272,1763812238741,-151.0,8.736e-05,2]
[394650273,1763812238750,-95401.39918859,8.736e-05,2]
[394650732,1763812914323,150.0,8.416e-05,2]
[394650733,1763812953239,162.369325,0.000192,30]
[394650734,1763813004396,-150.0,8.501e-05,2]
[394650735,1763813004423,-150.0,8.544e-05,2]
[394650736,1763813004450,-260.1300236,8.611e-05,2]
[394650737,1763813004475,-500.0,8.611e-05,2]
[394650738,1763813004502,-500.0,8.611e-05,2]
[394650739,1763813004529,-500.0,8.611e-05,2]
[394650740,1763813004557,-500.0,8.611e-05,2]
[394650741,1763813004584,-500.0,8.611e-05,2]
[394650742,1763813004611,-500.0,8.611e-05,2]
[394650743,1763813004636,-500.0,8.611e-05,2]
[394650744,1763813004663,-500.0,8.611e-05,2]
[394650745,1763813004688,-500.0,8.611e-05,2]
[394650746,1763813004714,-500.0,8.611e-05,2]
[394650747,1763813004740,-500.0,8.611e-05,2]
[394650748,1763813004766,-170.91165024,8.611e-05,2]
[394650749,1763813004793,-500.0,8.611e-05,2]
[394650750,1763813004821,-500.0,8.611e-05,2]
[394650751,1763813004847,-500.0,8.611e-05,2]
[394650752,1763813004879,-500.0,8.611e-05,2]
[394650753,1763813004906,-500.0,8.611e-05,2]
[394650754,1763813004932,-500.0,8.611e-05,2]
[394650755,1763813004963,-500.0,8.611e-05,2]
[394650756,1763813004995,-500.0,8.611e-05,2]
[394650757,1763813005022,-500.0,8.611e-05,2]
[394650758,1763813005059,-500.0,8.611e-05,2]
[394650759,1763813005087,-500.0,8.611e-05,2]
[394650760,1763813005120,-500.0,8.611e-05,2]
[394650761,1763813005147,-500.0,8.611e-05,2]
[394650762,1763813005176,-500.0,8.611e-05,2]
[394650763,1763813005205,-500.0,8.611e-05,2]
[394650764,1763813005238,-500.0,8.611e-05,2]
[394650765,1763813005266,-500.0,8.611e-05,2]
[394650766,1763813005292,-500.0,8.611e-05,2]
[394650767,1763813005324,-583.16878436,8.611e-05,2]
[394650768,1763813005353,-500.0,8.611e-05,2]
[394650769,1763813005380,-500.0,8.611e-05,2]
[394650770,1763813005412,-500.0,8.611e-05,2]
[394650771,1763813005440,-500.0,8.611e-05,2]
[394650772,1763813005468,-500.0,8.611e-05,2]
[394650773,1763813005500,-500.0,8.611e-05,2]
[394650774,1763813005528,-287.501691,8.611e-05,2]
[394650775,1763813005560,-500.0,8.611e-05,2]
[394650776,1763813005590,-620.49020079,8.611e-05,2]
[394650777,1763813005618,-500.0,8.611e-05,2]
[394650778,1763813005650,-500.0,8.611e-05,2]
[394650779,1763813005682,-500.0,8.611e-05,2]
[394650780,1763813005710,-500.0,8.611e-05,2]
[394650781,1763813005743,-500.0,8.611e-05,2]
[394650782,1763813005770,-500.0,8.611e-05,2]
[394650783,1763813005800,-500.0,8.611e-05,2]
[394650784,1763813005830,-500.0,8.611e-05,2]
[394650785,1763813005856,-500.0,8.611e-05,2]
[394650786,1763813005888,-55.59530002,8.611e-05,2]
[394650787,1763813103119,1096.45632754,8e-05,2]
[394650788,1763813208326,640.64996727,8.439e-05,2]
[394650797,1763813432699,-466.78564874,8.608e-05,2]
[394650814,1763813438613,-500.0,8.607e-05,2]
[394650815,1763813438623,-500.0,8.607e-05,2]
[394650816,1763813438634,-500.0,8.607e-05,2]
[394650817,1763813438645,-500.0,8.607e-05,2]
[394650818,1763813438655,-500.0,8.607e-05,2]
[394650819,1763813438664,-500.0,8.607e-05,2]
[394650820,1763813438674,-500.0,8.607e-05,2]
[394650821,1763813438683,-365.27796567,8.607e-05,2]
[394650822,1763813438693,-500.0,8.607e-05,2]
[394650823,1763813438702,-500.0,8.607e-05,2]
[394650824,1763813438712,-500.0,8.607e-05,2]
[394650825,1763813438721,-500.0,8.607e-05,2]
[394650826,1763813438731,-500.0,8.607e-05,2]
[394650827,1763813438740,-500.0,8.607e-05,2]
[394650828,1763813438749,-500.0,8.607e-05,2]
[394650830,1763813438759,-500.0,8.607e-05,2]
[394650832,1763813438768,-500.0,8.607e-05,2]
[394650834,1763813438777,-500.0,8.607e-05,2]
[394650836,1763813438786,-500.0,8.607e-05,2]
[394650838,1763813438796,-500.0,8.607e-05,2]
[394650840,1763813438805,-500.0,8.607e-05,2]
[394650842,1763813438815,-500.0,8.607e-05,2]
[394650844,1763813438825,-500.0,8.607e-05,2]
[394650846,1763813438834,-500.0,8.607e-05,2]
[394650848,1763813438844,-500.0,8.607e-05,2]
[394650850,1763813438857,-500.0,8.607e-05,2]
[394650852,1763813438867,-500.0,8.607e-05,2]
[394650854,1763813438876,-500.0,8.607e-05,2]
[394650855,1763813438886,-500.0,8.607e-05,2]
[394650856,1763813438896,-500.0,8.607e-05,2]
[394650857,1763813438905,-286.9965997,8.607e-05,2]
[394650910,1763813441568,-213.0034003,8.607e-05,2]
[394650911,1763813441577,-500.0,8.607e-05,2]
[394650912,1763813441587,-500.0,8.607e-05,2]
[394650913,1763813441596,-500.0,8.607e-05,2]
[394650914,1763813441607,-500.0,8.607e-05,2]
[394650915,1763813441616,-500.0,8.607e-05,2]
[394650916,1763813441626,-500.0,8.607e-05,2]
[394650917,1763813441635,-500.0,8.607e-05,2]
[394650918,1763813441647,-547.3411847,8.607e-05,2]
[394650919,1763813441657,-500.0,8.607e-05,2]
[394650920,1763813441667,-500.0,8.607e-05,2]
[394650921,1763813441677,-500.0,8.607e-05,2]
[394650922,1763813441686,-500.0,8.607e-05,2]
[394650923,1763813441695,-500.0,8.607e-05,2]
[394650924,1763813441705,-500.0,8.607e-05,2]
[394650925,1763813441715,-500.0,8.607e-05,2]
[394650926,1763813441724,-500.0,8.607e-05,2]
[394650927,1763813441733,-500.0,8.607e-05,2]
[394650928,1763813441743,-500.0,8.607e-05,2]
[394650929,1763813441752,-500.0,8.607e-05,2]
[394650930,1763813441762,-500.0,8.607e-05,2]
[394650931,1763813441771,-500.0,8.607e-05,2]
[394650932,1763813441780,-500.0,8.607e-05,2]
[394650933,1763813441790,-500.0,8.607e-05,2]
[394650934,1763813441799,-500.0,8.607e-05,2]
[394650935,1763813441808,-500.0,8.607e-05,2]
[394650936,1763813441819,-500.0,8.607e-05,2]
[394650937,1763813441828,-406.63076954,8.607e-05,2]
[394650938,1763813441837,-500.0,8.607e-05,2]
[394650939,1763813441847,-500.0,8.607e-05,2]
[394650940,1763813441856,-500.0,8.607e-05,2]
[394650941,1763813441865,-500.0,8.607e-05,2]
[394650942,1763813441875,-500.0,8.607e-05,2]
[394650943,1763813441884,-500.0,8.607e-05,2]
[394650944,1763813441894,-500.0,8.607e-05,2]
[394650945,1763813441903,-500.0,8.607e-05,2]
[394650946,1763813441913,-500.0,8.607e-05,2]
[394650947,1763813441922,-500.0,8.607e-05,2]
[394650948,1763813441932,-500.0,8.607e-05,2]
[394650949,1763813441943,-500.0,8.607e-05,2]
[394650950,1763813441952,-500.0,8.607e-05,2]
[394650951,1763813441962,-196.3805309,8.607e-05,2]
[394650952,1763813441972,-319.63815517,8.607e-05,2]
[394650953,1763813441981,-500.0,8.607e-05,2]
[394650954,1763813441991,-500.0,8.607e-05,2]
[394650955,1763813442000,-500.0,8.607e-05,2]
[394650956,1763813442009,-500.0,8.607e-05,2]
[394650957,1763813442019,-500.0,8.607e-05,2]
[394650958,1763813442029,-500.0,8.607e-05,2]
[394650959,1763813442038,-500.0,8.607e-05,2]
[394650960,1763813442048,-500.0,8.607e-05,2]
[394650961,1763813442057,-2420.49138341,8.608e-05,2]
[394650962,1763813442071,-624.75,8.608e-05,2]
[394651015,1763813646184,-998.60195726,8.505e-05,2]
[394651016,1763813646218,-150.0,8.506e-05,2]
[394651017,1763813646249,-1200.0,8.506e-05,2]
[394651018,1763813646281,-300.0,8.506e-05,2]
[394651019,1763813646378,-44702.79608548,8.507e-05,2]
[394651020,1763813670612,156.838417,0.000196,30]
[394651021,1763813705375,2877.3,0.00025279,120]
[394651023,1763813756157,985.0,8.42e-05,2]
[394651024,1763813779015,985.0,8.42e-05,2]
[394651025,1763813801355,5594.64617719,8.42e-05,2]
[394651026,1763813825394,-300.0,8.419e-05,2]
[394651027,1763813825422,-11677.95908952,8.42e-05,2]
[394651028,1763813845009,2061.20022845,8.42e-05,2]
[394651029,1763814126875,300.0,8.417e-05,2]
[394651030,1763814150053,300.0,8.417e-05,2]
[394651031,1763814172369,1200.0,8.416e-05,2]
[394651032,1763814194769,1500.0,8.416e-05,2]
[394651033,1763814212703,203.86831681,0.00012333,10]
[394651034,1763814213050,203.86831681,0.00012879,12]
[394651035,1763814217128,682.88159251,8.416e-05,2]
[394651036,1763814231151,-425.16761001,8.416e-05,2]
[394651037,1763814231727,4408.04920252,8.316e-05,2]
[394651040,1763814424583,300.0,8.5e-05,2]
[394651041,1763814469075,1200.0,8.5e-05,2]
[394651042,1763814483575,300.0,8.5e-05,2]
[394651043,1763814499366,558.01176022,8.416e-05,2]
[394651044,1763814508174,207.54737255,8.416e-05,2]
[394651045,1763814516233,558.01176022,8.416e-05,2]
[394651046,1763814524180,558.01176022,8.416e-05,2]
[394651047,1763814534756,41060.03292425,8.402e-05,2]
[394651048,1763814547820,343.52775116,8.235e-05,2]
[394651071,1763814631806,-625.36181593,8.318e-05,2]
[394651072,1763814631818,-473.95424789,8.318e-05,2]
[394651073,1763814631827,-150.0,8.36e-05,2]
[394651074,1763814631837,-500.28621688,8.383e-05,2]
[394651075,1763814631846,-500.0,8.383e-05,2]
[394651076,1763814631856,-597.77425164,8.383e-05,2]
[394651077,1763814631865,-500.0,8.383e-05,2]
[394651078,1763814631874,-500.0,8.383e-05,2]
[394651079,1763814631883,-311.07256805,8.383e-05,2]
[394651080,1763814631895,-500.0,8.383e-05,2]
[394651082,1763814631904,-231.42117456,8.383e-05,2]
[394651084,1763814631913,-500.0,8.383e-05,2]
[394651086,1763814631922,-510.94054269,8.383e-05,2]
[394651087,1763814631931,-500.0,8.383e-05,2]
[394651088,1763814631939,-500.0,8.383e-05,2]
[394651089,1763814631948,-500.0,8.383e-05,2]
[394651090,1763814631957,-500.0,8.383e-05,2]
[394651091,1763814631965,-188.2,8.383e-05,2]
[394651092,1763814631974,-160.00000011,8.383e-05,2]
[394651093,1763814631983,-500.0,8.383e-05,2]
[394651094,1763814631991,-500.0,8.383e-05,2]
[394651095,1763814632000,-500.0,8.383e-05,2]
[394651096,1763814632009,-500.0,8.383e-05,2]
[394651097,1763814632018,-500.0,8.383e-05,2]
[394651098,1763814632026,-500.30530084,8.383e-05,2]
[394651099,1763814632035,-502.10063033,8.383e-05,2]
[394651100,1763814632043,-500.0,8.383e-05,2]
[394651101,1763814632052,-500.0,8.383e-05,2]
[394651102,1763814632061,-170.80720476,8.383e-05,2]
[394651103,1763814632070,-300.0,8.401e-05,2]
[394651104,1763814632079,-685.0,8.401e-05,2]
[394651105,1763814632089,-848939.96707575,8.402e-05,2]
[394651106,1763814632098,-558.01176022,8.501e-05,2]
[394651107,1763814632108,-50000.0,8.501e-05,2]
[394651108,1763814632119,-711.97199712,8.501e-05,2]
[394651109,1763814632129,-711.97199712,8.501e-05,2]
[394651110,1763814632140,-711.97199712,8.501e-05,2]
[394651111,1763814632149,-711.97199712,8.501e-05,2]
[394651112,1763814632158,-711.97199712,8.501e-05,2]
[394651113,1763814632167,-711.97199712,8.501e-05,2]
[394651114,1763814632176,-711.97199712,8.501e-05,2]
[394651115,1763814632185,-711.97199712,8.501e-05,2]
[394651116,1763814632194,-711.97199712,8.501e-05,2]
[394651117,1763814632205,-711.97199712,8.501e-05,2]
[394651118,1763814632215,-711.97199712,8.501e-05,2]
[394651119,1763814632225,-711.97199712,8.501e-05,2]
[394651120,1763814632234,-500.0,8.501e-05,2]
[394651121,1763814632245,-500.0,8.501e-05,2]
[394651122,1763814632255,-500.0,8.501e-05,2]
[394651123,1763814632264,-500.0,8.501e-05,2]
[394651124,1763814632273,-500.0,8.501e-05,2]
[394651125,1763814632283,-500.0,8.501e-05,2]
[394651126,1763814632292,-500.0,8.501e-05,2]
[394651127,1763814632301,-500.0,8.501e-05,2]
[394651128,1763814632310,-322.60526668,8.501e-05,2]
[394651129,1763814632319,-500.0,8.501e-05,2]
[394651130,1763814632329,-500.0,8.501e-05,2]
[394651131,1763814632339,-500.0,8.501e-05,2]
[394651132,1763814632349,-500.0,8.501e-05,2]
[394651133,1763814632370,-500.0,8.501e-05,2]
[394651134,1763814632380,-500.0,8.501e-05,2]
[394651135,1763814632390,-500.0,8.501e-05,2]
[394651136,1763814632399,-250.0,8.503e-05,2]
[394651137,1763814632408,-250.0,8.503e-05,2]
[394651138,1763814632417,-250.0,8.503e-05,2]
[394651139,1763814632427,-250.0,8.503e-05,2]
[394651140,1763814632436,-250.0,8.503e-05,2]
[394651141,1763814632446,-250.0,8.503e-05,2]
[394651142,1763814632456,-250.0,8.503e-05,2]
[394651143,1763814632465,-250.0,8.503e-05,2]
[394651144,1763814632474,-250.0,8.503e-05,2]
[394651145,1763814632483,-250.0,8.503e-05,2]
[394651146,1763814632493,-250.0,8.503e-05,2]
[394651147,1763814632503,-250.0,8.503e-05,2]
[394651148,1763814632512,-212.05456893,8.504e-05,2]
[394651149,1763814632521,-151.0,8.504e-05,2]
[394651150,1763814632532,-151.0,8.504e-05,2]
[394651151,1763814632544,-9583.00337276,8.504e-05,2]
[394651152,1763814632553,-182.06990056,8.506e-05,2]
[394651153,1763814632563,-151.55183211,8.506e-05,2]
[394651154,1763814632573,-500.0,8.506e-05,2]
[394651155,1763814632583,-152.4719008,8.506e-05,2]
[394651156,1763814632592,-167.16248286,8.506e-05,2]
[394651157,1763814632603,-151.0,8.506e-05,2]
[394651158,1763814632616,-151.0,8.506e-05,2]
[394651159,1763814632626,-153.19226149,8.506e-05,2]
[394651160,1763814632636,-151.0,8.506e-05,2]
[394651161,1763814632647,-151.0,8.506e-05,2]
[394651162,1763814632656,-247.69020194,8.506e-05,2]
[394651163,1763814632665,-300.0,8.506e-05,2]
[394651164,1763814632675,-151.0,8.506e-05,2]
[394651165,1763814632684,-151.0,8.506e-05,2]
[394651166,1763814632693,-151.0,8.506e-05,2]
[394651167,1763814632703,-500.0,8.506e-05,2]
[394651168,1763814632712,-1645.0,8.506e-05,2]
[394651169,1763814632721,-500.0,8.506e-05,2]
[394651170,1763814632731,-1128.0,8.506e-05,2]
[394651171,1763814632740,-154.22616044,8.506e-05,2]
[394651172,1763814632749,-202.16492014,8.506e-05,2]
[394651173,1763814632758,-500.0,8.507e-05,2]
[394651174,1763814632773,-9583.00337273,8.513e-05,2]
[394651175,1763814632792,-9583.00337273,8.523e-05,2]
[394651176,1763814632806,-9583.00337273,8.532e-05,2]
[394651177,1763814632815,-66228.0618632,8.541e-05,2]
[394651178,1763814632826,-1239.965224,8.541e-05,2]
[394651179,1763814632836,-9583.00337273,8.541e-05,2]
[394651180,1763814632848,-170.048789,8.62e-05,2]
[394651181,1763814632858,-391.766544,8.62e-05,2]
[394651182,1763814632869,-308.356298,8.62e-05,2]
[394651183,1763814632879,-594.8582363,8.62e-05,2]
[394651184,1763814632889,-396.2020041,8.62e-05,2]
[394651185,1763814632899,-396.2020041,8.62e-05,2]
[394651186,1763814632908,-395.9029773,8.62e-05,2]
[394651187,1763814632917,-151.0,8.641e-05,2]
[394651188,1763814632926,-151.0,8.641e-05,2]
[394651189,1763814632935,-500.0,8.643e-05,2]
[394651190,1763814632945,-151.0,8.643e-05,2]
[394651191,1763814632955,-154.68871001,8.643e-05,2]
[394651192,1763814632966,-151.0,8.643e-05,2]
[394651193,1763814632976,-300.0,8.643e-05,2]
[394651194,1763814632990,-151.0,8.643e-05,2]
[394651195,1763814633000,-151.0,8.643e-05,2]
[394651196,1763814633011,-500.0,8.643e-05,2]
[394651197,1763814633022,-1645.0,8.643e-05,2]
[394651198,1763814633031,-500.0,8.643e-05,2]
[394651199,1763814633042,-1128.0,8.643e-05,2]
[394651200,1763814633051,-753.89322883,8.691e-05,2]
[394651201,1763814633061,-151.0,8.778e-05,2]
[394651202,1763814633072,-244.15375618,8.778e-05,2]
[394651203,1763814633082,-500.0,8.78e-05,2]
[394651204,1763814633093,-289.29309471,8.78e-05,2]
[394651205,1763814633102,-151.0,8.78e-05,2]
[394651206,1763814633112,-267.81824584,8.78e-05,2]
[394651207,1763814633122,-162.35404905,8.78e-05,2]
[394651208,1763814633132,-151.0,8.78e-05,2]
[394651209,1763814633143,-606.43388488,8.78e-05,2]
[394651210,1763814633153,-1645.0,8.78e-05,2]
[394651211,1763814633163,-293.66378248,8.78e-05,2]
[394651212,1763814633173,-1128.0,8.78e-05,2]
[394651213,1763814633183,-500.0,8.781e-05,2]
[394651214,1763814633195,-15171.1081233,8.833e-05,2]
[394651215,1763814633204,-267.13184802,8.915e-05,2]
[394651216,1763814633216,-500.0,8.917e-05,2]
[394651217,1763814633225,-204.70141849,8.917e-05,2]
[394651218,1763814633235,-271.51391046,8.917e-05,2]
[394651219,1763814633245,-1645.0,8.917e-05,2]
[394651220,1763814633256,-1128.0,8.917e-05,2]
[394651221,1763814633267,-1012.59144058,8.931e-05,2]
[394651222,1763814633278,-1000.0,8.931e-05,2]
[394651223,1763814633287,-1000.0,8.931e-05,2]
[394651224,1763814633298,-1000.0,8.931e-05,2]
[394651225,1763814633307,-1000.0,8.931e-05,2]
[394651226,1763814633317,-1000.0,8.931e-05,2]
[394651227,1763814633326,-1000.0,8.931e-05,2]
[394651228,1763814633336,-1000.0,8.931e-05,2]
[394651229,1763814633347,-1000.0,8.931e-05,2]
[394651230,1763814633359,-1000.0,8.931e-05,2]
[394651231,1763814633369,-501.52369019,8.931e-05,2]
[394651232,1763814633379,-1000.0,8.931e-05,2]
[394651233,1763814633392,-1001.99217362,8.931e-05,2]
[394651234,1763814633402,-500.49782718,8.931e-05,2]
[394651235,1763814633411,-507.04413645,8.931e-05,2]
[394651236,1763814633422,-1000.0,8.931e-05,2]
[394651237,1763814633436,-2068.12711232,8.957e-05,2]
[394651238,1763814633446,-4074.61414,9.036e-05,2]
[394651239,1763814633456,-528.55324892,9.054e-05,2]
[394651240,1763814633465,-1645.0,9.054e-05,2]
[394651241,1763814633475,-1128.0,9.054e-05,2]
[394651242,1763814633485,-500.0,9.055e-05,2]
[394651243,1763814633496,-2068.12711232,9.122e-05,2]
[394651244,1763814633506,-1645.0,9.191e-05,2]
[394651245,1763814633516,-1128.0,9.191e-05,2]
[394651246,1763814633527,-500.0,9.225e-05,2]
[394651247,1763814633539,-392.78422348,9.225e-05,2]
[394651248,1763814633549,-500.0,9.225e-05,2]
[394651249,1763814633559,-500.0,9.225e-05,2]
[394651250,1763814633569,-363.95233423,9.225e-05,2]
[394651251,1763814633578,-500.44178598,9.225e-05,2]
[394651252,1763814633588,-501.41458427,9.225e-05,2]
[394651253,1763814633598,-500.0,9.225e-05,2]
[394651254,1763814633609,-420.0,9.241e-05,2]
[394651255,1763814633618,-4074.61414,9.304e-05,2]
[394651256,1763814633628,-1645.0,9.328e-05,2]
[394651257,1763814633637,-1128.0,9.328e-05,2]
[394651258,1763814633647,-500.0,9.328e-05,2]
[394651259,1763814633656,-286.0,9.35e-05,2]
[394651260,1763814633666,-2068.12711232,9.384e-05,2]
[394651261,1763814633676,-4074.61414,9.391e-05,2]
[394651262,1763814633685,-1239.965224,9.425e-05,2]
[394651263,1763814633695,-1645.0,9.465e-05,2]
[394651264,1763814633704,-1128.0,9.465e-05,2]
[394651265,1763814633714,-713.84129543,9.478e-05,2]
[394651266,1763814633724,-1355.27437466,9.478e-05,2]
[394651267,1763814633734,-1500.0,9.478e-05,2]
[394651268,1763814633743,-715.47395117,9.478e-05,2]
[394651269,1763814633752,-1500.0,9.478e-05,2]
[394651270,1763814633762,-525.59968716,9.478e-05,2]
[394651271,1763814633771,-1500.0,9.478e-05,2]
[394651272,1763814633780,-1500.0,9.478e-05,2]
[394651273,1763814633789,-1500.0,9.478e-05,2]
[394651274,1763814633972,-1500.0,9.478e-05,2]
[394651275,1763814633993,-307.77598093,9.478e-05,2]
[394651276,1763814634002,-1645.0,9.602e-05,2]
[394651277,1763814634012,-1128.0,9.602e-05,2]
[394651278,1763814634023,-548.51846409,9.602e-05,2]
[394651279,1763814634034,-14777.4780498,9.7e-05,2]
[394651280,1763814634043,-4074.61416,9.714e-05,2]
[394651281,1763814634052,-2068.12711232,9.718e-05,2]
[394651282,1763814634061,-1645.0,9.739e-05,2]
[394651283,1763814634070,-1128.0,9.739e-05,2]
[394651284,1763814634079,-300.0,9.742e-05,2]
[394651285,1763814634088,-300.0,9.742e-05,2]
[394651286,1763814634097,-300.0,9.742e-05,2]
[394651287,1763814634106,-300.0,9.742e-05,2]
[394651288,1763814634114,-300.0,9.742e-05,2]
[394651289,1763814634123,-300.0,9.742e-05,2]
[394651290,1763814634132,-300.0,9.742e-05,2]
[394651291,1763814634143,-300.0,9.742e-05,2]
[394651292,1763814634152,-300.0,9.742e-05,2]
[394651293,1763814634161,-300.0,9.742e-05,2]
[394651294,1763814634170,-300.0,9.742e-05,2]
[394651295,1763814634179,-300.0,9.742e-05,2]
[394651296,1763814634189,-300.0,9.742e-05,2]
[394651297,1763814634199,-300.0,9.742e-05,2]
[394651298,1763814634208,-300.0,9.742e-05,2]
[394651299,1763814634218,-600.0,9.742e-05,2]
[394651300,1763814634228,-1007.98539488,9.773e-05,2]
[394651301,1763814634238,-1000.0,9.773e-05,2]
[394651302,1763814634247,-628.35922429,9.773e-05,2]
[394651303,1763814634257,-1000.0,9.773e-05,2]
[394651304,1763814634266,-3423.39912965,9.776e-05,2]
[394651305,1763814634287,-404.29,9.804e-05,2]
[394651306,1763814634297,-1645.0,9.876e-05,2]
[394651307,1763814634308,-1128.0,9.876e-05,2]
[394651308,1763814634318,-2068.12711232,9.885e-05,2]
[394651309,1763814634329,-173.25,9.914e-05,2]
[394651310,1763814634339,-3297.3010438,9.958e-05,2]
[394651311,1763814634350,-287.92171547,0.0001,2]
[394651312,1763814634360,-209.40437684,0.0001,2]
[394651313,1763814634370,-414.0,0.0001001,2]
[394651314,1763814634380,-1645.0,0.00010013,2]
[394651315,1763814634391,-1128.0,0.00010013,2]
[394651316,1763814634402,-504.9572422,0.00010026,2]
[394651317,1763814634411,-2000.0,0.00010026,2]
[394651318,1763814634420,-2000.0,0.00010026,2]
[394651319,1763814634429,-367.0669494,0.00010026,2]
[394651320,1763814634439,-2000.0,0.00010026,2]
[394651321,1763814634450,-2000.0,0.00010026,2]
[394651322,1763814634460,-1645.0,0.0001015,2]
[394651323,1763814634470,-1128.0,0.0001015,2]
[394651324,1763814634480,-587.0,0.00010165,2]
[394651325,1763814634490,-3423.39912965,0.00010233,2]
[394651326,1763814634500,-1645.0,0.00010287,2]
[394651327,1763814634509,-1128.0,0.00010287,2]
[394651328,1763814634519,-1239.965224,0.00010308,2]
[394651329,1763814634529,-422.71994988,0.00010321,2]
[394651330,1763814634541,-1500.0,0.00010321,2]
[394651331,1763814634551,-177.0,0.0001036,2]
[394651332,1763814634562,-2068.12711232,0.00010393,2]
[394651333,1763814634572,-1645.0,0.00010424,2]
[394651334,1763814634584,-1128.0,0.00010424,2]
[394651335,1763814634594,-1645.0,0.00010561,2]
[394651336,1763814634604,-1128.0,0.00010561,2]
[394651337,1763814634615,-1956.47531924,0.00010574,2]
[394651338,1763814634624,-2500.0,0.00010574,2]
[394651339,1763814634634,-2500.0,0.00010574,2]
[394651340,1763814634646,-2500.0,0.00010574,2]
[394651341,1763814634656,-422.70397602,0.00010618,2]
[394651342,1763814634666,-2068.12711232,0.0001065,2]
[394651343,1763814634676,-3423.39912965,0.0001069,2]
[394651344,1763814634686,-1645.0,0.00010698,2]
[394651345,1763814634695,-1128.0,0.00010698,2]
[394651346,1763814634704,-720.0,0.00010716,2]
[394651347,1763814634714,-2068.12711232,0.00010779,2]
[394651348,1763814634723,-1645.0,0.00010835,2]
[394651349,1763814634732,-1128.0,0.00010835,2]
[394651350,1763814634742,-10000.0,0.00010859,2]
[394651351,1763814634751,-464.29390071,0.00010869,2]
[394651352,1763814634762,-151.0,0.00010959,2]
[394651353,1763814634773,-151.0,0.00010959,2]
[394651354,1763814634783,-151.0,0.00010959,2]
[394651355,1763814634792,-151.0,0.00010959,2]
[394651356,1763814634801,-151.0,0.00010959,2]
[394651357,1763814634811,-151.0,0.00010959,2]
[394651358,1763814634821,-151.0,0.00010959,2]
[394651359,1763814634832,-151.0,0.00010959,2]
[394651360,1763814634842,-151.0,0.00010959,2]
[394651361,1763814634852,-151.0,0.00010959,2]
[394651362,1763814634863,-168.340063,0.00010959,2]
[394651363,1763814634873,-151.0,0.00010959,2]
[394651364,1763814634882,-151.0,0.00010959,2]
[394651365,1763814634893,-151.0,0.00010959,2]
[394651366,1763814634902,-204.612869,0.00010959,2]
[394651367,1763814634912,-151.0,0.00010959,2]
[394651368,1763814634922,-151.0,0.00010959,2]
[394651369,1763814634932,-151.0,0.00010959,2]
[394651370,1763814634941,-152.038074,0.00010959,2]
[394651371,1763814634951,-151.0,0.00010959,2]
[394651372,1763814634960,-204.799524,0.00010959,2]
[394651373,1763814634969,-151.0,0.00010959,2]
[394651374,1763814634978,-151.0,0.00010959,2]
[394651375,1763814634987,-151.0,0.00010959,2]
[394651376,1763814634996,-160.425482,0.00010959,2]
[394651377,1763814635005,-151.0,0.00010959,2]
[394651378,1763814635014,-151.0,0.00010959,2]
[394651379,1763814635023,-162.557134,0.00010959,2]
[394651380,1763814635032,-151.0,0.00010959,2]
[394651381,1763814635042,-153.342459,0.00010959,2]
[394651382,1763814635051,-292.819289,0.00010959,2]
[394651383,1763814635060,-292.819289,0.00010959,2]
[394651384,1763814635069,-292.819289,0.00010959,2]